fUSD/lending_fUSD_20260426
["ID","MTS","AMOUNT","RATE_DAILY","PERIOD"]
[421179258,1777212649570,-151.0,0.00026129,2]
[421179259,1777212649580,-151.0,0.00026129,2]
[421179260,1777212649590,-288.35527592,0.0002616,2]
[421179261,1777212649602,-1000.0,0.0002616,2]
[421179262,1777212649613,-1000.0,0.0002616,2]
[421179263,1777212649626,-181.57118762,0.0002616,2]
[421179264,1777212649637,-1592.87721993,0.00026279,2]
[421179265,1777212649647,-450.0,0.00026301,2]
[421179266,1777212649657,-411.48,0.000264,7]
[421179267,1777212649668,-1500.0,0.00026468,2]
[421179268,1777212649678,-1577.0,0.00026597,3]
[421179269,1777212649687,-384.423926,0.00026602,2]
[421179270,1777212649697,-384.423926,0.00026602,2]
[421179271,1777212649708,-384.423926,0.00026602,2]
[421179272,1777212649718,-384.423926,0.00026602,2]
[421179273,1777212649728,-151.0,0.00026602,2]
[421179274,1777212649739,-151.0,0.00026602,2]
[421179275,1777212649750,-151.0,0.00026602,2]
[421179276,1777212649760,-229.070854,0.00026602,2]
[421179277,1777212649770,-557.280886,0.00026602,2]
[421179278,1777212649780,-557.280886,0.00026602,2]
[421179279,1777212649790,-557.280886,0.00026602,2]
[421179280,1777212649801,-557.280886,0.00026602,2]
[421179281,1777212649810,-1428.64462493,0.00026602,2]
[421179282,1777212649820,-1532.99365969,0.00026602,2]
[421179283,1777212649831,-1500.0,0.00026602,2]
[421179284,1777212649840,-232.28,0.00026614,2]
[421179285,1777212649851,-152.0,0.00026638,7]
[421179286,1777212649862,-152.0,0.00026638,7]
[421179287,1777212649871,-152.0,0.00026638,7]
[421179288,1777212649882,-152.0,0.00026646,30]
[421179289,1777212649893,-152.0,0.00026646,30]
[421179290,1777212649904,-152.0,0.00026664,7]
[421179291,1777212649915,-152.0,0.00026664,7]
[421179292,1777212649926,-152.0,0.00026664,7]
[421179293,1777212649936,-152.0,0.00026672,30]
[421179294,1777212649946,-152.0,0.00026672,30]
[421179295,1777212649957,-284.53137076,0.00026697,2]
[421179296,1777212649967,-1500.0,0.00026708,2]
[421179297,1777212649978,-1500.0,0.00026708,2]
[421179298,1777212649989,-1651.81367706,0.00026827,2]
[421179299,1777212649999,-1577.0,0.00026917,3]
[421179300,1777212650009,-600.0,0.00027,2]
[421179301,1777212650019,-1861.195928,0.00027,2]
[421179302,1777212650029,-162.25551732,0.00027,3]
[421179303,1777212650039,-2000.0,0.00027016,2]
[421179304,1777212650049,-2000.0,0.0002715,2]
[421179305,1777212650059,-650.0,0.00027175,2]
[421179306,1777212650070,-650.0,0.00027175,2]
[421179307,1777212650079,-650.0,0.00027175,2]
[421179308,1777212650089,-650.0,0.00027175,2]
[421179309,1777212650099,-650.0,0.00027175,2]
[421179310,1777212650108,-650.0,0.00027175,2]
[421179311,1777212650118,-650.0,0.00027175,2]
[421179312,1777212650128,-650.0,0.00027175,2]
[421179313,1777212650137,-650.0,0.00027175,2]
[421179314,1777212650147,-435.0,0.00027175,2]
[421179315,1777212650156,-500.0,0.00027179,2]
[421179316,1777212650166,-500.0,0.00027179,2]
[421179317,1777212650176,-500.0,0.00027179,2]
[421179318,1777212650186,-500.0,0.00027179,2]
[421179319,1777212650195,-500.0,0.00027179,2]
[421179320,1777212650205,-500.0,0.00027179,2]
[421179321,1777212650215,-500.0,0.00027179,2]
[421179322,1777212650225,-500.0,0.00027179,2]
[421179323,1777212650234,-500.0,0.00027179,2]
[421179324,1777212650244,-485.0,0.00027179,2]
[421179325,1777212650254,-500.0,0.00027185,2]
[421179326,1777212650264,-150.0,0.00027185,2]
[421179327,1777212650274,-150.0,0.00027185,2]
[421179328,1777212650283,-150.0,0.00027185,2]
[421179329,1777212650293,-150.0,0.00027185,2]
[421179330,1777212650303,-150.0,0.00027185,2]
[421179331,1777212650312,-150.0,0.00027185,2]
[421179332,1777212650322,-150.0,0.00027185,2]
[421179333,1777212650332,-150.0,0.00027185,2]
[421179334,1777212650343,-267.0,0.00027185,2]
[421179335,1777212650354,-1451.72908577,0.00027192,21]
[421179336,1777212650365,-411.48,0.000272,7]
[421179337,1777212650376,-1000.0,0.00027209,7]
[421179338,1777212650387,-1264.584209,0.00027209,2]
[421179339,1777212650398,-1264.584209,0.00027209,2]
[421179340,1777212650409,-1264.584209,0.00027209,2]
[421179341,1777212650420,-1264.584209,0.00027209,2]
[421179342,1777212650431,-152.0,0.00027247,3]
[421179343,1777212650442,-2000.0,0.00027256,2]
[421179344,1777212650452,-2000.0,0.00027256,2]
[421179345,1777212650463,-150.0,0.00027288,2]
[421179346,1777212650473,-150.0,0.00027288,2]
[421179347,1777212650482,-150.0,0.00027288,2]
[421179348,1777212650492,-150.0,0.00027288,2]
[421179349,1777212650502,-150.0,0.00027288,2]
[421179350,1777212650512,-150.0,0.00027288,2]
[421179351,1777212650523,-150.0,0.00027288,2]
[421179352,1777212650535,-150.0,0.00027288,2]
[421179353,1777212650545,-166.96897662,0.000273,30]
[421179354,1777212650556,-23195.29,0.000273,7]
[421179355,1777212650566,-1712.93078312,0.00027375,2]
[421179356,1777212650577,-1999.770048,0.00027397,2]
[421179357,1777212650587,-1999.770048,0.00027397,2]
[421179358,1777212650597,-1999.770048,0.00027397,2]
[421179359,1777212650608,-1999.770048,0.00027397,2]
[421179360,1777212650619,-584.12809072,0.00027397,2]
[421179361,1777212650629,-544.214046,0.00027397,2]
[421179362,1777212650639,-544.214046,0.00027397,2]
[421179363,1777212650651,-544.214046,0.00027397,2]
[421179364,1777212650662,-544.214046,0.00027397,2]
[421179365,1777212650671,-500.0,0.00027397,2]
[421179366,1777212650681,-1500.0,0.00027397,2]
[421179367,1777212650691,-1688.921419,0.00027397,2]
[421179368,1777212650700,-1688.921419,0.00027397,2]
[421179369,1777212650709,-1688.921419,0.00027397,2]
[421179370,1777212650719,-1688.921419,0.00027397,2]
[421179371,1777212650728,-1688.921419,0.00027397,2]
[421179372,1777212650742,-1688.921419,0.00027397,2]
[421179373,1777212650752,-1688.921419,0.00027397,2]
[421179374,1777212650762,-1688.921419,0.00027397,2]
[421179375,1777212650772,-21015.44,0.00027397,10]
[421179376,1777212650781,-1282.0,0.00027397,15]
[421179377,1777212650792,-500.0,0.00027397,5]
[421179378,1777212650802,-150.0,0.00027397,5]
[421179379,1777212650813,-274.247292,0.00027416,7]
[421179380,1777212650825,-465.926387,0.00027416,7]
[421179381,1777212650835,-465.926387,0.00027416,7]
[421179382,1777212650844,-465.926387,0.00027416,7]
[421179383,1777212650854,-465.926387,0.00027416,7]
[421179384,1777212650864,-330.9,0.0002742,2]
[421179385,1777212650874,-500.0,0.00027452,2]
[421179386,1777212650885,-500.0,0.00027507,2]
[421179387,1777212650895,-232.28,0.00027554,2]
[421179388,1777212650908,-500.0,0.00027562,2]
[421179389,1777212650918,-341.420321,0.000276,7]
[421179390,1777212650928,-341.420321,0.000276,7]
[421179391,1777212650938,-341.420321,0.000276,7]
[421179392,1777212650947,-341.420321,0.000276,7]
[421179393,1777212650958,-500.0,0.00027617,2]
[421179394,1777212650968,-1282.0,0.00027671,15]
[421179395,1777212650978,-500.0,0.00027672,2]
[421179396,1777212650990,-1204.25179037,0.00027698,5]
[421179397,1777212651001,-500.0,0.00027727,2]
[421179398,1777212651011,-500.0,0.00027782,2]
[421179399,1777212651021,-455.73983573,0.00027804,5]
[421179400,1777212651032,-590.83492632,0.00027804,5]
[421179401,1777212651043,-500.0,0.00027837,2]
[421179402,1777212651053,-500.0,0.00027892,2]
[421179403,1777212651062,-174.0,0.00027909,2]
[421179404,1777212651073,-621.78829552,0.00027921,2]
[421179405,1777212651083,-670.58624095,0.00027921,2]
[421179406,1777212651093,-1776.30922209,0.00027923,2]
[421179407,1777212651103,-1282.0,0.00027945,15]
[421179408,1777212651113,-250.0,0.00027945,5]
[421179409,1777212651123,-500.0,0.00027947,2]
[421179410,1777212651133,-180.0,0.00027952,2]
[421179411,1777212651145,-160.0,0.00028,10]
[421179412,1777212651155,-159.29,0.00028,2]
[421179413,1777212651165,-159.29,0.00028,2]
[421179414,1777212651175,-500.0,0.00028002,2]
[421179415,1777212651185,-150.0,0.00028033,2]
[421179416,1777212651194,-206.0,0.00028033,2]
[421179417,1777212651204,-150.0,0.00028036,7]
[421179418,1777212651214,-150.0,0.00028036,7]
[421179419,1777212651224,-150.0,0.00028036,7]
[421179420,1777212651235,-150.0,0.00028036,7]
[421179421,1777212651245,-150.0,0.00028036,7]
[421179422,1777212651254,-150.0,0.00028036,7]
[421179423,1777212651263,-500.0,0.00028057,2]
[421179424,1777212651273,-1398.96,0.00028097,7]
[421179425,1777212651283,-1000.0,0.00028098,2]
[421179426,1777212651295,-1115.86718248,0.00028098,2]
[421179427,1777212651305,-807.0,0.000281,2]
[421179428,1777212651315,-174.0,0.000281,2]
[421179429,1777212651326,-313.0,0.000281,2]
[421179430,1777212651336,-500.0,0.00028112,2]
[421179431,1777212651347,-500.0,0.00028167,2]
[421179432,1777212651357,-161.0,0.00028201,2]
[421179433,1777212651367,-500.0,0.00028217,15]
[421179434,1777212651376,-500.0,0.00028217,15]
[421179435,1777212651386,-500.0,0.00028217,15]
[421179436,1777212651395,-535.58,0.00028217,15]
[421179437,1777212651405,-676.55,0.00028217,15]
[421179438,1777212651414,-881.99,0.00028217,15]
[421179439,1777212651424,-500.0,0.00028217,15]
[421179440,1777212651434,-500.0,0.00028217,15]
[421179441,1777212651444,-500.0,0.00028217,2]
[421179442,1777212651453,-521.77,0.00028217,15]
[421179443,1777212651463,-500.0,0.00028217,15]
[421179444,1777212651472,-500.0,0.00028217,15]
[421179445,1777212651483,-500.0,0.00028217,2]
[421179446,1777212651494,-500.0,0.00028217,7]
[421179447,1777212651503,-500.0,0.00028217,15]
[421179448,1777212651512,-500.0,0.00028217,15]
[421179449,1777212651522,-500.0,0.00028217,7]
[421179450,1777212651532,-500.0,0.00028217,15]
[421179451,1777212651541,-845.06,0.00028217,15]
[421179452,1777212651552,-500.0,0.00028217,15]
[421179453,1777212651562,-500.0,0.00028217,15]
[421179454,1777212651571,-1282.0,0.00028219,15]
[421179455,1777212651581,-9733.34666325,0.000283,7]
[421179456,1777212652736,-375.17,0.000283,7]
[421179457,1777212653294,-6561.22632194,0.000283,7]
[421179458,1777212653859,-3896.4,0.000283,7]
[421179459,1777212654017,-674.77981893,0.000283,7]
[421179460,1777212654593,-183.17,0.00022372,2]
[421179461,1777212654602,-874.58726203,0.000283,7]
[421179462,1777212654616,-1079.77993385,0.000283,7]
[421179463,1777212654626,-1842.03266331,0.00028471,2]
[421179464,1777212654636,-150.0,0.00028481,7]
[421179465,1777212654645,-232.28,0.00028493,2]
[421179466,1777212654655,-232.28,0.00028493,30]
[421179467,1777212654664,-1282.0,0.00028493,15]
[421179468,1777212654674,-350.0,0.00028493,5]
[421179469,1777212654683,-1501.497223,0.000285,2]
[421179470,1777212654692,-150.0,0.00028529,7]
[421179471,1777212654702,-150.0,0.00028555,7]
[421179472,1777212654711,-573.399,0.00028642,2]
[421179473,1777212654720,-1328.09062383,0.00028646,15]
[421179474,1777212654730,-1883.24,0.000287,7]
[421179475,1777212654739,-1282.0,0.00028767,15]
[421179476,1777212654749,-1000.0,0.00028767,5]
[421179477,1777212654758,-150.0,0.00028814,7]
[421179478,1777212654767,-6993.43919328,0.00028893,2]
[421179479,1777212654777,-150.0,0.00028926,7]
[421179480,1777212654786,-276.82,0.00028984,60]
[421179481,1777212654796,-650.0,0.00029,2]
[421179482,1777212654805,-151.0,0.00029,7]
[421179483,1777212654814,-1758.9581896,0.00029,2]
[421179484,1777212654824,-507.48625854,0.00029,2]
[421179485,1777212654834,-1500.0,0.00029,2]
[421179486,1777212654844,-156.0,0.00029019,5]
[421179487,1777212654854,-158.0,0.00029019,5]
[421179488,1777212654864,-1910.18787185,0.00029019,2]
[421179489,1777212654873,-920.30904241,0.00029041,15]
[421179490,1777212654890,-361.69095759,0.00029041,15]
[421179491,1777212654900,-450.0,0.00029041,5]
[421179492,1777212654909,-837.29631841,0.00029049,21]
[421179494,1777212672383,365.583496,0.00030532,120]
[421179495,1777212698433,463.581213,0.0003034,120]
[421179496,1777212710861,176.86665207,0.0003287,120]
[421179497,1777212729452,4611.71265812,0.00032876,120]
[421179498,1777212741497,150.0,0.00015,120]
[421179499,1777212741910,310.05,0.000159,120]
[421179500,1777212745364,342.17,0.00032877,120]
[421179502,1777212767632,250.0,0.00032877,120]
[421179503,1777212805127,342.411253,0.00030078,120]
[421179504,1777212826879,500.0,0.00032,120]
[421179505,1777212828541,182.791748,0.00029302,120]
[421179506,1777212830263,30000.0,0.00032876,120]
[421179507,1777212848399,1000.0,0.000328,120]
[421179508,1777212863970,500.0,0.0003,120]
[421179509,1777212878285,1000.0,0.000308,120]
[421179510,1777212898400,231.790606,0.00029302,120]
[421179511,1777212914770,1156.0,0.000328,120]
[421179513,1777212929023,150.0,0.00015,120]
[421179514,1777212929351,172.03,0.000159,120]
[421179516,1777212940327,469.0,0.0003287,120]
[421179517,1777212941543,1588.0,0.0003287,120]
[421179518,1777212943765,231.0,0.0003287,120]
[421179520,1777212964073,250.0,0.00032876,120]
[421179521,1777212964530,250.0,0.00032876,120]
[421179522,1777212965021,250.0,0.00032876,120]
[421179523,1777212965539,250.0,0.00032876,120]
[421179524,1777212966077,250.0,0.00032876,120]
[421179525,1777212974509,999.9999,0.00032876,120]
[421179528,1777213000228,1000.0,0.00032876,120]
[421179529,1777213000428,300.0,0.0003287,120]
[421179533,1777213030053,1000.0,0.00032876,120]
[421179534,1777213033673,194.47,0.00032877,120]
[421179535,1777213043446,217.0857,0.000308,120]
[421179537,1777213061264,712.4352156,0.0003287,120]
[421179543,1777213115883,251.42,0.00015,120]
[421179545,1777213119159,1120.18639748,0.0003287,120]
[421179546,1777213141434,807.9201,0.00032876,120]
[421179552,1777213227770,1566.88166,0.0003,120]
[421179555,1777213369961,500.0,0.0003287,120]
[421179556,1777213518022,500.0,0.0003287,120]
[421179557,1777213520519,500.0,0.0003287,120]
[421179558,1777213616744,1445.86,0.00032877,120]
[421179564,1777213831489,-300.0,0.00010522,2]
[421179565,1777213831954,-886.60713462,0.00010523,2]
[421179566,1777213832021,-313.39286538,0.00010523,2]
[421179567,1777213832032,-1200.0,0.00010523,2]
[421179568,1777213832043,-300.0,0.00010523,2]
[421179569,1777213832054,-300.0,0.00010523,2]
[421179570,1777213832064,-250.0,0.0001105,2]
[421179571,1777213832076,-420.0,0.00011568,2]
[421179572,1777213832087,-250.0,0.00011575,2]
[421179573,1777213832097,-250.0,0.00013,2]
[421179574,1777213832108,-160.0,0.00013281,2]
[421179575,1777213832119,-162.25551732,0.00013281,2]
[421179576,1777213832130,-932.64,0.00013698,2]
[421179577,1777213832141,-932.64,0.00013698,2]
[421179578,1777213832152,-949.47,0.00014504,2]
[421179579,1777213832167,-725.63,0.00014504,2]
[421179580,1777213832178,-300.0,0.00015,2]
[421179581,1777213832190,-160.0,0.00015,2]
[421179582,1777213832200,-193.0,0.00016438,2]
[421179583,1777213832211,-350.0,0.00017,2]
[421179584,1777213832223,-1365.92,0.000173,2]
[421179585,1777213832233,-678.19,0.00017728,2]
[421179586,1777213832244,-518.3,0.00017728,2]
[421179587,1777213832254,-193.0,0.00018635,2]
[421179588,1777213832265,-400.0,0.00019,2]
[421179589,1777213832275,-932.64,0.0001912,2]
[421179590,1777213832286,-360.0,0.0002,2]
[421179591,1777213832297,-262.8092817,0.0002,30]
[421179592,1777213832333,-2115.2107183,0.0002,30]
[421179593,1777213832344,-169.0,0.0002,2]
[421179594,1777213832355,-391.0,0.0002,2]
[421179595,1777213832366,-563.0,0.0002,2]
[421179596,1777213832377,-604.0,0.0002,2]
[421179597,1777213832388,-219.0,0.0002,2]
[421179598,1777213832399,-193.0,0.0002,2]
[421179599,1777213832410,-739.0,0.0002,2]
[421179600,1777213832422,-193.0,0.00020831,2]
[421179601,1777213832432,-1365.92,0.00021,2]
[421179602,1777213832443,-450.0,0.00021,2]
[421179603,1777213832453,-360.0,0.00021,2]
[421179604,1777213832465,-169.0,0.00021,2]
[421179605,1777213832475,-391.0,0.00021,2]
[421179606,1777213832486,-563.0,0.00021,2]
[421179607,1777213832496,-604.0,0.00021,2]
[421179608,1777213832508,-219.0,0.00021,2]
[421179609,1777213832519,-193.0,0.00021,2]
[421179610,1777213832530,-739.0,0.00021,2]
[421179611,1777213832543,-1219.0,0.00021618,2]
[421179612,1777213832554,-927.0,0.00021618,2]
[421179613,1777213832565,-500.0,0.00021618,2]
[421179614,1777213832575,-388.11415823,0.00021918,2]
[421179615,1777213832588,-150.0,0.00021918,2]
[421179616,1777213832605,-360.0,0.00022,2]
[421179617,1777213832615,-495.91,0.00022,30]
[421179618,1777213832627,-169.0,0.00022,2]
[421179619,1777213832639,-391.0,0.00022,2]
[421179620,1777213832649,-563.0,0.00022,2]
[421179621,1777213832660,-604.0,0.00022,2]
[421179622,1777213832671,-219.0,0.00022,2]
[421179623,1777213832682,-193.0,0.00022,2]
[421179624,1777213832693,-739.0,0.00022,2]
[421179625,1777213832704,-286.65485468,0.00022085,2]
[421179626,1777213832715,-2262.94,0.00022086,30]
[421179627,1777213832726,-150.0,0.00022857,2]
[421179628,1777213832737,-500.0,0.00023,2]
[421179629,1777213832747,-360.0,0.00023,2]
[421179630,1777213832758,-169.0,0.00023,2]
[421179631,1777213832769,-391.0,0.00023,2]
[421179632,1777213832780,-563.0,0.00023,2]
[421179633,1777213832792,-604.0,0.00023,2]
[421179634,1777213832804,-219.0,0.00023,2]
[421179635,1777213832815,-193.0,0.00023,2]
[421179636,1777213832826,-739.0,0.00023,2]
[421179637,1777213832837,-193.0,0.00023028,2]
[421179638,1777213832847,-932.64,0.00023099,2]
[421179639,1777213832858,-377.41,0.00023542,2]
[421179640,1777213832869,-161516.06193897,0.00023651,2]
[421179641,1777213832883,-14915.04197657,0.00023651,2]
[421179644,1777213838473,-61221.55615444,0.00023651,2]
[421179704,1777213845577,-293.37500001,0.0002,2]
[421179705,1777213845591,-55.62499999,0.0002,2]
[421179706,1777213845601,-349.0,0.00021,2]
[421179707,1777213845611,-349.0,0.00022,2]
[421179708,1777213845622,-349.0,0.00023,2]
[421179709,1777213845633,-109.65060713,0.00023651,2]
[421179710,1777213845650,-912.0,0.00023651,2]
[421179711,1777213846027,-2358.0,0.00023651,2]
[421179712,1777213846039,-783.16269752,0.00023651,2]
[421179715,1777213856636,155.77,0.000156,120]
[421179716,1777213873447,165.61800418,0.00032876,120]
[421179717,1777213876332,190.08572939,0.00032876,120]
[421179718,1777213879266,1278.910195,0.00028858,120]
[421179719,1777213886665,4897.309294,0.00028858,120]
[421179721,1777213929923,524.955087,0.00028459,120]
[421179722,1777213934139,500.0,0.00032876,120]
[421179723,1777213934459,605.519917,0.00028459,120]
[421179724,1777213948903,192.19884,0.00028185,120]
[421179726,1777213968811,178.109762,0.00027227,120]
[421179727,1777214021203,205.266032,0.00026849,120]
[421179728,1777214090477,420.073177,0.00026849,120]
[421179729,1777214134064,1442.957202,0.00026613,120]
[421179730,1777214139646,210.036589,0.00026849,120]
[421179731,1777214153451,500.0,0.0003287,120]
[421179732,1777214190252,283.430412,0.00026613,120]
[421179733,1777214224252,295.1,0.00032877,120]
[421179735,1777214283006,2000.0,0.00032877,120]
[421179736,1777214358521,425.157032,0.00026613,120]
[421179737,1777214399066,1237.0,0.00032877,120]
[421179738,1777214413837,212.578516,0.00026335,120]
[421179740,1777214571149,246.74,0.00032877,120]
[421179741,1777214588233,500.0,0.000328,120]
[421179742,1777214671074,1298.77,0.000328,120]
[421179743,1777214672674,476.39,0.00032877,120]
[421179744,1777214692339,304.05,0.0003287,120]
[421179745,1777214780253,486.48,0.000328,120]
[421179746,1777214796465,535.1029735,0.0003287,120]
[421179747,1777214799351,1062.09,0.000328,120]
[421179748,1777214801617,8032.97,0.00032877,120]
[421179749,1777214807550,599.14,0.0003287,120]
[421179750,1777214815843,262.633343,0.00026081,120]
[421179751,1777214836259,1005.697444,0.00026033,120]
[421179752,1777214907500,222.811623,0.00025587,120]
[421179753,1777214925684,178.124791,0.00025578,120]
[421179754,1777214940551,1000.0,0.00032877,120]
[421179755,1777214982226,1570.06,0.00032877,120]
[421179760,1777214999355,1570.06,0.00032877,120]
[421179761,1777215011427,1667.4,0.00032877,120]
[421179764,1777215031805,-250.0,0.00013,2]
[421179765,1777215031815,-52.31441782,0.00013,2]
[421179766,1777215031831,-267.68558218,0.00013,2]
[421179767,1777215031841,-2500.0,0.00014,2]
[421179768,1777215031851,-2500.0,0.000143,2]
[421179769,1777215031861,-300.0,0.00015,2]
[421179770,1777215031871,-350.0,0.00017,2]
[421179771,1777215031882,-300.0,0.00018197,2]
[421179772,1777215031893,-1200.0,0.00018197,2]
[421179773,1777215031905,-300.0,0.00018197,2]
[421179774,1777215031915,-300.0,0.00018197,2]
[421179775,1777215031927,-5290.42339091,0.00018198,2]
[421179776,1777215031937,-250.0,0.00018198,2]
[421179777,1777215031948,-5000.0,0.00018198,2]
[421179778,1777215031959,-232.73855724,0.00018298,2]
[421179779,1777215031969,-3545.47933879,0.00018698,2]
[421179780,1777215031979,-578.20924308,0.00019521,2]
[421179781,1777215031989,-160.0,0.00019784,2]
[421179782,1777215031999,-160.0,0.00019837,2]
[421179783,1777215032009,-150.0,0.00019851,2]
[421179785,1777215032019,-11333.1414014,0.00019918,2]
[421179818,1777215033274,-1576.259482,0.00019918,2]
[421179819,1777215033288,-579.784,0.00019918,2]
[421179820,1777215033309,-8949.52998,0.00019918,2]
[421179824,1777215037964,-39027.36773269,0.00019918,2]
[421179825,1777215038175,-610.37527883,0.00019918,2]
[421179826,1777215038229,-397.48322924,0.00019918,2]
[421179827,1777215038241,-10604.41898778,0.00019918,2]
[421179828,1777215038283,-8460.0,0.00019918,2]
[421179829,1777215038294,-49400.26685555,0.00019918,2]
[421179845,1777215040017,-5585.74995251,0.00019918,2]
[421179846,1777215040027,-480.0,0.00019948,2]
[421179847,1777215040038,-293.0,0.0002,2]
[421179848,1777215040050,-418.0,0.0002,2]
[421179849,1777215040060,-288.0,0.0002,2]
[421179850,1777215040069,-159.0,0.0002,2]
[421179851,1777215040079,-313.0,0.0002,2]
[421179852,1777215040090,-450.0,0.0002,2]
[421179853,1777215040099,-350.75704749,0.0002,2]
[421179868,1777215045818,160.0,0.00032876,120]
[421179869,1777215045857,-500.0,0.00018712,2]
[421179870,1777215045867,-132.24295251,0.0002,2]
[421179871,1777215045877,-175.0,0.0002,2]
[421179872,1777215045887,-151.0,0.00020006,2]
[421179873,1777215045897,-646.65982734,0.00020006,2]
[421179874,1777215045907,-1280.88388878,0.00020006,2]
[421179875,1777215045916,-500.0,0.00020006,2]
[421179876,1777215045926,-151.0,0.00020006,2]
[421179877,1777215045935,-500.0,0.00020006,2]
[421179878,1777215045945,-151.0,0.00020006,2]
[421179879,1777215045955,-500.0,0.00020006,2]
[421179880,1777215045965,-151.0,0.00020006,2]
[421179881,1777215045976,-500.0,0.00020006,2]
[421179882,1777215045987,-151.0,0.00020006,2]
[421179883,1777215045996,-500.0,0.00020006,2]
[421179884,1777215046007,-151.0,0.00020006,2]
[421179885,1777215046018,-500.0,0.00020006,2]
[421179886,1777215046029,-151.0,0.00020006,2]
[421179887,1777215046040,-151.0,0.00020006,2]
[421179888,1777215046051,-500.0,0.00020006,2]
[421179889,1777215046063,-151.0,0.00020006,2]
[421179890,1777215046074,-578.65158662,0.00020006,2]
[421179891,1777215046085,-151.0,0.00020006,2]
[421179892,1777215046095,-151.0,0.00020006,2]
[421179893,1777215046104,-151.0,0.00020006,2]
[421179894,1777215046114,-180.07757831,0.00020006,2]
[421179895,1777215046126,-500.0,0.00020016,2]
[421179896,1777215046135,-500.0,0.00020016,2]
[421179897,1777215046145,-500.0,0.00020016,2]
[421179898,1777215046156,-500.0,0.00020016,2]
[421179899,1777215046166,-500.0,0.00020016,2]
[421179900,1777215046176,-500.0,0.00020016,2]
[421179901,1777215046186,-500.0,0.00020016,2]
[421179902,1777215046196,-500.0,0.00020016,2]
[421179903,1777215046207,-500.0,0.00020016,2]
[421179904,1777215046216,-500.0,0.00020016,2]
[421179905,1777215046226,-500.0,0.00020016,2]
[421179906,1777215046236,-500.0,0.00020016,2]
[421179907,1777215046246,-500.0,0.00020016,2]
[421179908,1777215046255,-500.0,0.00020016,2]
[421179909,1777215046264,-500.0,0.00020016,2]
[421179910,1777215046274,-500.0,0.00020016,2]
[421179911,1777215046284,-500.0,0.00020016,2]
[421179912,1777215046294,-500.0,0.00020016,2]
[421179913,1777215046303,-500.0,0.00020016,2]
[421179914,1777215046313,-500.0,0.00020016,2]
[421179915,1777215046323,-500.0,0.00020016,2]
[421179916,1777215046332,-500.0,0.00020016,2]
[421179917,1777215046342,-500.0,0.00020016,2]
[421179918,1777215046352,-500.0,0.00020016,2]
[421179919,1777215046363,-500.0,0.00020016,2]
[421179920,1777215046373,-500.0,0.00020016,2]
[421179921,1777215046382,-500.0,0.00020016,2]
[421179923,1777215046392,-500.0,0.00020016,2]
[421179924,1777215046402,-500.0,0.00020016,2]
[421179925,1777215046412,-500.0,0.00020016,2]